[Event "European School-ch 2019"]
[Site "Mamaia"]
[Date "2019.06.06"]
[Round "7.52"]
[White "Kapicakova, Lucia"]
[Black "Puia, Alexia-Teodora"]
[Result "0-1"]
[ECO "A06"]
[WhiteElo "1776"]
[BlackElo "1543"]
[Annotator "NA RC"]
[PlyCount "110"]
[EventDate "2019.05.31"]
[EventType "swiss"]
[EventCountry "ROU"]
[SourceTitle "playchess.com"]
[Source "ChessBase"]
[SourceQuality "1"]
[TimeControl "40/5400+30:1800+30"]

1. Nf3 {[%emt 0:00:00]} d5 {[%emt 0:00:00]} 2. g3 {[%emt 0:00:00]} Nf6 {[%emt 0:00:00]} 3. Bg2 {[%emt 0:00:00]} Nc6 {[%emt 0:00:00]} 4. d3 {[%emt 0:00:00]} e5 {[%emt 0:00:00]} 5. Nbd2 {[%emt 0:00:50]} Bf5 {[%emt 0:00:22]} 6. O-O {[%emt 0:01:59]} Qd7 {[%emt 0:00:40]} 7. Nh4 {[%emt 0:02:42]} Bh3 {[%emt 0:01:16]} 8. e4 {[%emt 0:03:12]} O-O-O {[%emt 0:06:13]} 9. exd5 {[%emt 0:05:27]} Nxd5 {[%emt 0:03:05]} 10. Nc4 {[%emt 0:02:26]} f6 {[%emt 0:07:08]} 11. a3 {[%emt 0:08:11]} g5 {[%emt 0:01:29]} 12. Nf3 {[%emt 0:00:53]} h5 {[%emt 0:02:42]} 13. Ne3 {[%emt 0:10:42]} Nxe3 {[%emt 0:05:10]} 14. Bxe3 {[%emt 0:00:49]} h4 {[%emt 0:04:38]} 15. Qe2 {[%emt 0:11:09]} Bxg2 {[%emt 0:08:57]} 16. Kxg2 {[%emt 0:00:31]} h3+ {[%emt 0:08:31]} 17. Kg1 {[%emt 0:01:06]} Qd5 {[%emt 0:08:31]} 18. Ne1 {[%emt 0:13:29]} Nd4 {[%emt 0:05:39]} 19. Bxd4 {[%emt 0:09:49]} Qxd4 {[%emt 0:00:15]} 20. c3 {[%emt 0:03:24]} Qd7 {[%emt 0:01:13]} 21. Rd1 {[%emt 0:04:45]} Bc5 {[%emt 0:03:45]} 22. b4 {[%emt 0:03:47]} Bb6 {[%emt 0:00:59]} 23. Nc2 {[%emt 0:01:50]} Qc6 {[%emt 0:01:09]} 24. Qe4 {[%emt 0:05:59]} Qxc3 {[%emt 0:02:26]} 25. Ne3 {[%emt 0:01:24]} Bxe3 {[%emt 0:04:46]} 26. fxe3 {[%emt 0:01:51]} Rd6 {[%emt 0:00:30]} 27. Rfe1 {[%emt 0:03:55]} Kb8 {[%emt 0:06:46]} 28. a4 {[%emt 0:00:59]} Rhd8 {[%emt 0:00:20]} 29. d4 {[%emt 0:01:33]} exd4 {[%emt 0:01:59]} 30. exd4 {[%emt 0:00:17]} Qxb4 {[%emt 0:00:43]} 31. d5 {[%emt 0:01:33]} Qxe4 {[%emt 0:00:42]} 32. Rxe4 {[%emt 0:00:05]} c6 {[%emt 0:00:22]} 33. Re7 {[%emt 0:01:02]} Rxd5 {[%emt 0:00:23]} 34. Rxd5 {[%emt 0:00:35]} Rxd5 {[%emt 0:00:31]} 35. Rh7 {[%emt 0:00:17]} g4 {[%emt 0:01:50]} 36. Rf7 {[%emt 0:00:33]} Rf5 {[%emt 0:00:53]} 37. Rg7 {[%emt 0:00:18]} Rg5 {[%emt 0:00:11]} 38. Rf7 {[%emt 0:00:19]} Ra5 {[%emt 0:00:14]} 39. Rxf6 {[%emt 0:00:28]} Rxa4 {[%emt 0:00:08]} 40. Kf2 {[%emt 0:00:00]} a5 {[%emt 0:00:00]} 41. Ke3 {[%emt 0:09:36]} Rc4 {[%emt 0:04:23]} 42. Kd3 {[%emt 0:01:43]} b5 {[%emt 0:00:11]} 43. Rf7 {[%emt 0:03:05]} a4 {[%emt 0:00:42]} 44. Re7 {[%emt 0:03:16]} a3 {[%emt 0:00:33]} 45. Re2 {[%emt 0:00:58]} Kb7 {[%emt 0:00:24]} 46. Ra2 {[%emt 0:02:07]} Ra4 {[%emt 0:00:10]} 47. Kc3 {[%emt 0:00:37]} Kb6 {[%emt 0:01:20]} 48. Kb3 {[%emt 0:01:44]} Ka5 {[%emt 0:00:19]} 49. Kc3 {[%emt 0:02:36]} c5 {[%emt 0:00:18]} 50. Kc2 {[%emt 0:03:43]} Rc4+ {[%emt 0:00:28]} 51. Kb3 {[%emt 0:01:19]} Rb4+ {[%emt 0:00:05]} 52. Kc3 {[%emt 0:00:31]} Ka4 {[%emt 0:00:09]} 53. Ra1 {[%emt 0:04:31]} Rb3+ {[%emt 0:00:51]} 54. Kc2 {[%emt 0:00:25]} Rb2+ {[%emt 0:00:13]} 55. Kc3 {[%emt 0:00:39]} Rxh2 {[%emt 0:00:15]} 0-1

[Event "European School-ch 2019"]
[Site "Mamaia"]
[Date "2019.06.06"]
[Round "7.53"]
[White "Babayeva, Nasrin"]
[Black "Obada, Ema"]
[Result "0-1"]
[ECO "A25"]
[WhiteElo "1451"]
[BlackElo "1889"]
[Annotator "NA RC"]
[PlyCount "72"]
[EventDate "2019.05.31"]
[EventType "swiss"]
[EventCountry "ROU"]
[SourceTitle "playchess.com"]
[Source "ChessBase"]
[SourceQuality "1"]
[TimeControl "40/5400+30:1800+30"]

1. c4 {[%emt 0:00:00]} e5 {[%emt 0:00:00]} 2. g3 {[%emt 0:00:00]} Nc6 {[%emt 0:00:00]} 3. Nc3 {[%emt 0:00:00]} g6 {[%emt 0:00:00]} 4. Bg2 {[%emt 0:00:00]} Bg7 {[%emt 0:00:00]} 5. e4 {[%emt 0:00:03]} d6 {[%emt 0:00:53]} 6. Nf3 {[%emt 0:00:46]} Nge7 {[%emt 0:01:16]} 7. d3 {[%emt 0:00:26]} O-O {[%emt 0:04:20]} 8. O-O {[%emt 0:00:24] A26: English Opening vs King's Indian with ...Nc6 and d3} f5 {[%emt 0:06:33]} 9. a3 {[%emt 0:01:40]} (9. h3 h6 10. Nd5 Nxd5 11. cxd5 Ne7 12. b4 Bd7 13. a4 g5 14. Bb2 Qc8 {0-1 (30) Horvath,Z (2381)-Berczes,D (2493) Hungary 2018}) 9... Nd4 {[%emt 0:06:44]} 10. Nxd4 {[%emt 0:00:41]} exd4 {[%emt 0:00:04]} 11. Ne2 {[%emt 0:00:12]} Nc6 {[%emt 0:14:33]} 12. Rb1 {[%emt 0:02:55]} fxe4 {[%emt 0:02:01]} 13. dxe4 {[%emt 0:00:29]} a5 $146 {[%emt 0:06:45]} ({Predecessor:} 13... Be6 14. b3 a5 15. a4 Qf6 16. Bb2 Rae8 {0-1 (37) Hidalgo Santana,F (2095)-Hernandez Leon,A (2231) Cotelec 2009}) 14. b3 {[%emt 0:08:04]} a4 {[%emt 0:00:56]} 15. Nf4 {[%emt 0:15:55]} axb3 {[%emt 0:04:56]} 16. Qxb3 {[%emt 0:00:10]} Na5 {[%emt 0:01:00]} 17. Qc2 {[%emt 0:03:15]} c5 {[%emt 0:04:29]} 18. Nd5 {[%emt 0:01:31]} Nc6 {[%emt 0:01:34]} 19. f4 {[%emt 0:03:35]} Ra7 {[%emt 0:01:45]} 20. Bb2 {[%emt 0:08:14]} (20. Nb6 $14) 20... Be6 {[%emt 0:01:53]} 21. f5 $11 {[%emt 0:05:50]} Bxd5 {[%emt 0:00:30]} 22. exd5 {[%emt 0:00:11]} Ne5 {[%emt 0:01:03]} 23. fxg6 {[%emt 0:03:47]} hxg6 {[%emt 0:00:47]} 24. Rxf8+ {[%emt 0:00:16]} Bxf8 {[%emt 0:00:25]} 25. Rf1 {[%emt 0:01:35]} Bg7 {[%emt 0:02:41]} 26. Bh3 {[%emt 0:00:31]} Qe7 {[%emt 0:05:38]} 27. Be6+ {[%emt 0:02:24]} Kh8 {[%emt 0:06:05]} 28. Qg2 {[%emt 0:01:45]} Bh6 {[%emt 0:01:08]} 29. Qe4 {[%emt 0:11:29]} Be3+ {[%emt 0:03:20]} 30. Kh1 {[%emt 0:00:38]} Ra8 {[%emt 0:00:27]} 31. Kg2 {[%emt 0:07:46]} Kg7 {[%emt 0:00:17]} 32. Qc2 {[%emt 0:05:50]} Rf8 {[%emt 0:00:27]} 33. Rxf8 {[%emt 0:00:39]} Qxf8 {[%emt 0:00:03]} 34. Qe2 {[%emt 0:00:09]} Qa8 {[%emt 0:02:44]} 35. Qc2 {[%emt 0:01:00]} Qa5 {[%emt 0:00:50]} 36. Kh3 {[%emt 0:03:53]} Qe1 {[%emt 0:00:31]} 0-1

[Event "European School-ch 2019"]
[Site "Mamaia"]
[Date "2019.06.06"]
[Round "7.54"]
[White "Vorobyova, Ekaterina"]
[Black "Ruzic, Pia Marie"]
[Result "1/2-1/2"]
[ECO "C05"]
[WhiteElo "1795"]
[BlackElo "1917"]
[Annotator "NA RC"]
[PlyCount "130"]
[EventDate "2019.05.31"]
[EventType "swiss"]
[EventCountry "ROU"]
[SourceTitle "playchess.com"]
[Source "ChessBase"]
[SourceQuality "1"]
[TimeControl "40/5400+30:1800+30"]

1. e4 {[%emt 0:00:00]} e6 {[%emt 0:00:00]} 2. d4 {[%emt 0:00:00]} d5 {[%emt 0:00:00]} 3. Nd2 {[%emt 0:00:00]} Nf6 {[%emt 0:00:00]} 4. e5 {[%emt 0:00:01]} Nfd7 {[%emt 0:00:00]} 5. Bd3 {[%emt 0:00:09]} c5 {[%emt 0:00:04]} 6. c3 {[%emt 0:00:08]} Nc6 {[%emt 0:00:37]} 7. Ne2 {[%emt 0:00:38]} Qb6 {[%emt 0:00:52]} 8. Nf3 {[%emt 0:01:27]} Be7 {[%emt 0:00:12]} 9. O-O {[%emt 0:02:15]} O-O {[%emt 0:02:04]} 10. Nf4 {[%emt 0:06:25]} Re8 {[%emt 0:08:11] C06: French Tarrasch: 3...Nf6 4 e5 Nfd7 5 Bd3 main lines} 11. Re1 {[%emt 0:03:09]} (11. h4 Nf8 12. Qd2 cxd4 13. cxd4 f6 14. exf6 Bxf6 15. Nh5 Bxd4 16. Qg5 Qd8 17. Qg3 Bf6 18. Nxf6+ Qxf6 {1-0 (28) Arnold,M (2504)-Coleman,T (2374) Las Vegas 2011}) 11... Nf8 {[%emt 0:01:29]} 12. a3 {[%emt 0:02:42]} Bd7 {[%emt 0:03:41]} 13. Rb1 $146 {[%emt 0:03:30]} ({Predecessor:} 13. Nh5 cxd4 14. cxd4 Rac8 15. Nxg7 Kxg7 16. Qd2 Nxd4 17. Qh6+ Kh8 18. Ng5 {½-½ (29) Gazis,E-Grigoropoulos Athens 1984}) 13... f6 {[%emt 0:12:06]} 14. Bc2 {[%emt 0:10:13]} cxd4 {[%emt 0:08:34]} 15. cxd4 {[%emt 0:01:23]} fxe5 {[%emt 0:00:16]} 16. dxe5 {[%emt 0:02:59]} Bc5 {[%emt 0:00:40]} 17. Be3 {[%emt 0:02:49]} Rac8 {[%emt 0:03:18]} 18. Qd3 {[%emt 0:06:47]} Bxe3 {[%emt 0:02:32]} 19. Rxe3 {[%emt 0:01:34]} Qc7 {[%emt 0:09:38]} 20. Rc1 {[%emt 0:02:51]} Re7 {[%emt 0:01:40]} 21. h4 $16 {[%emt 0:06:56]} Rf7 {[%emt 0:07:49]} 22. Nh3 {[%emt 0:06:09]} g6 {[%emt 0:11:17]} 23. Nhg5 {[%emt 0:05:14]} Rf5 {[%emt 0:01:18]} 24. Qe2 {[%emt 0:03:57]} Rf4 {[%emt 0:03:06]} 25. Rc3 {[%emt 0:04:44]} Rc4 {[%emt 0:07:25]} 26. Rxc4 {[%emt 0:05:51]} dxc4 {[%emt 0:00:05]} 27. Qe4 {[%emt 0:03:10]} Ne7 {[%emt 0:03:38]} 28. Qf4 {[%emt 0:03:22]} Be8 {[%emt 0:00:25]} 29. Ne4 {[%emt 0:00:39]} Nd5 {[%emt 0:00:52]} 30. Qg4 {[%emt 0:04:20]} b5 {[%emt 0:02:07]} 31. h5 {[%emt 0:02:13]} Qg7 {[%emt 0:00:49]} 32. hxg6 {[%emt 0:00:51]} Bxg6 {[%emt 0:02:38]} 33. Nd6 {[%emt 0:04:51]} Rb8 {[%emt 0:00:10]} 34. Bxg6 {[%emt 0:00:56]} Qxg6 {[%emt 0:00:04]} 35. Qd4 {[%emt 0:00:48]} Qg7 {[%emt 0:03:17]} 36. Re1 {[%emt 0:00:34]} Ng6 {[%emt 0:01:55]} 37. Qg4 {[%emt 0:01:29]} Ngf4 {[%emt 0:00:20]} 38. Qxg7+ {[%emt 0:01:26]} Kxg7 {[%emt 0:00:02]} 39. g3 {[%emt 0:00:25]} Nd3 {[%emt 0:00:07]} 40. Re2 {[%emt 0:00:00]} a6 {[%emt 0:00:00]} 41. Nd4 {[%emt 0:03:07]} Nc5 {[%emt 0:05:39]} 42. Kg2 {[%emt 0:06:05]} Ne7 {[%emt 0:03:15]} 43. f4 {[%emt 0:01:57]} h5 {[%emt 0:00:18]} 44. Kf3 {[%emt 0:01:55]} Kg6 {[%emt 0:00:08]} 45. Ne4 {[%emt 0:02:50]} Nxe4 {[%emt 0:00:37]} 46. Kxe4 {[%emt 0:00:08]} Rb6 {[%emt 0:00:12]} 47. Rf2 {[%emt 0:00:51]} a5 {[%emt 0:00:48]} 48. Nxe6 {[%emt 0:02:25]} Rxe6 {[%emt 0:00:06]} 49. f5+ {[%emt 0:00:04]} Nxf5 {[%emt 0:00:05]} 50. Rxf5 {[%emt 0:00:05]} b4 {[%emt 0:00:20]} 51. axb4 {[%emt 0:00:22]} axb4 {[%emt 0:00:07]} 52. Rf3 {[%emt 0:01:49]} Rc6 {[%emt 0:00:45]} 53. Kd5 {[%emt 0:00:21]} Rc8 {[%emt 0:00:04]} 54. e6 {[%emt 0:03:29]} c3 {[%emt 0:00:03]} 55. bxc3 {[%emt 0:00:04]} bxc3 {[%emt 0:00:01]} 56. e7 {[%emt 0:00:55]} c2 {[%emt 0:00:15]} 57. Rf1 {[%emt 0:00:08]} Kg5 {[%emt 0:01:48]} 58. Kd6 {[%emt 0:02:33]} Kg4 {[%emt 0:00:09]} 59. Kd7 {[%emt 0:03:08]} Ra8 {[%emt 0:00:14]} 60. e8=Q {[%emt 0:01:52]} Rxe8 {[%emt 0:00:05]} 61. Kxe8 {[%emt 0:00:14]} Kxg3 {[%emt 0:00:08]} 62. Rc1 {[%emt 0:00:08]} h4 {[%emt 0:00:18]} 63. Rxc2 {[%emt 0:00:25]} h3 {[%emt 0:00:05]} 64. Rc3+ {[%emt 0:00:05]} Kg2 {[%emt 0:00:03]} 65. Rxh3 {[%emt 0:00:13]} Kxh3 1/2-1/2

[Event "European School-ch 2019"]
[Site "Mamaia"]
[Date "2019.06.06"]
[Round "7.55"]
[White "Zyapaeva, Polina"]
[Black "Moskaleva, Arina"]
[Result "1/2-1/2"]
[ECO "A18"]
[WhiteElo "1806"]
[BlackElo "1613"]
[Annotator "NA RC"]
[PlyCount "123"]
[EventDate "2019.05.31"]
[EventType "swiss"]
[EventCountry "ROU"]
[SourceTitle "playchess.com"]
[Source "ChessBase"]
[SourceQuality "1"]
[TimeControl "40/5400+30:1800+30"]

1. c4 {[%emt 0:00:00]} Nf6 {[%emt 0:00:00]} 2. Nc3 {[%emt 0:00:00]} e6 {[%emt 0:00:07]} 3. e4 {[%emt 0:00:13]} d5 {[%emt 0:03:13]} 4. e5 {[%emt 0:02:10]} d4 {[%emt 0:01:45]} 5. exf6 {[%emt 0:02:59]} dxc3 {[%emt 0:00:08]} 6. bxc3 {[%emt 0:06:17]} Qxf6 {[%emt 0:00:16]} 7. d4 {[%emt 0:02:03]} c5 {[%emt 0:05:57]} 8. Nf3 {[%emt 0:04:31]} Nc6 {[%emt 0:01:40]} 9. Bg5 {[%emt 0:01:58]} Qg6 {[%emt 0:02:30]} 10. Bd3 {[%emt 0:02:29]} Qh5 {[%emt 0:01:03]} 11. d5 {[%emt 0:10:47]} Ne5 {[%emt 0:05:39]} 12. Nxe5 {[%emt 0:04:02]} Qxg5 {[%emt 0:00:33]} 13. Qa4+ {[%emt 0:01:05]} Ke7 {[%emt 0:02:25]} 14. d6+ {[%emt 0:02:32]} Kf6 {[%emt 0:00:19] [#]} 15. f4 $2 {[%emt 0:08:43]} (15. Nf3 $1 $18 {[%cal Rf3g5]} Qxg2 {[%mdl 64] Double Attack} 16. Ke2 Bxd6 17. h3) 15... Qxg2 {[%emt 0:01:26]} 16. O-O-O {[%emt 0:15:54]} Bxd6 {[%emt 0:03:43]} 17. Rhe1 {[%emt 0:06:47]} Ke7 {[%emt 0:01:55]} 18. Re2 $19 {[%emt 0:07:49]} (18. Be4 $17 Qxh2 19. Bxb7) 18... Qh3 {[%emt 0:00:42]} 19. Bc2 {[%emt 0:04:34]} Bxe5 {[%emt 0:01:40]} 20. fxe5 {[%emt 0:00:48]} Qxc3 {[%emt 0:00:51]} 21. Rd3 {[%emt 0:02:00]} Qb4 {[%emt 0:01:05]} 22. Red2 {[%emt 0:00:36]} Qxa4 {[%emt 0:08:49]} 23. Bxa4 {[%emt 0:00:02]} f6 {[%emt 0:00:49]} 24. Rd6 {[%emt 0:03:41]} fxe5 {[%emt 0:03:21]} 25. Kd1 {[%emt 0:01:30]} Rf8 {[%emt 0:02:49]} 26. Ke1 {[%emt 0:03:03]} a6 {[%emt 0:06:46]} 27. Bd7 {[%emt 0:02:07]} Rd8 {[%emt 0:06:32]} 28. Rxe6+ {[%emt 0:00:06]} Kf7 {[%emt 0:01:35]} 29. Rf2+ {[%emt 0:00:05]} Kg8 {[%emt 0:00:20]} 30. Bxc8 {[%emt 0:00:20]} Raxc8 {[%emt 0:00:04]} 31. Re7 {[%emt 0:00:37]} Rf8 {[%emt 0:01:15]} 32. Rb2 {[%emt 0:00:15]} Rb8 {[%emt 0:00:54]} 33. Rxe5 {[%emt 0:01:45]} Rfe8 {[%emt 0:00:50]} 34. Rbe2 {[%emt 0:00:05]} Rxe5 {[%emt 0:00:05]} 35. Rxe5 {[%emt 0:00:03]} Rc8 {[%emt 0:00:09]} 36. a4 {[%emt 0:00:31]} Kf7 {[%emt 0:00:04]} 37. Kd2 {[%emt 0:00:36]} Rd8+ {[%emt 0:01:25]} 38. Kc3 {[%emt 0:00:19]} Rc8 {[%emt 0:00:32]} 39. a5 {[%emt 0:00:51]} Rc6 {[%emt 0:00:56]} 40. Rf5+ {[%emt 0:00:00]} Ke7 {[%emt 0:00:00]} 41. Rd5 {[%emt 0:04:35]} g6 {[%emt 0:03:36]} 42. h4 {[%emt 0:06:32]} h6 {[%emt 0:01:36]} 43. Kc2 {[%emt 0:02:40]} Rc7 {[%emt 0:03:29]} 44. Kc3 {[%emt 0:01:58]} Kf6 {[%emt 0:01:08]} 45. Kd3 {[%emt 0:00:58]} g5 {[%emt 0:01:07]} 46. Ke4 {[%emt 0:09:53]} gxh4 {[%emt 0:01:51]} 47. Kf4 {[%emt 0:00:29]} Ke6 {[%emt 0:03:19]} 48. Rh5 {[%emt 0:02:07]} Rh7 {[%emt 0:01:24]} 49. Rxc5 {[%emt 0:01:12]} h5 {[%emt 0:00:28]} 50. Rg5 {[%emt 0:03:06]} Rf7+ {[%emt 0:02:07]} 51. Ke4 {[%emt 0:00:43]} Kd6 {[%emt 0:03:05]} 52. Rxh5 {[%emt 0:00:39]} h3 {[%emt 0:00:46]} 53. Rxh3 {[%emt 0:01:29]} Kc5 {[%emt 0:00:04]} 54. Rb3 {[%emt 0:04:05]} Kxc4 {[%emt 0:00:19]} 55. Rb6 {[%emt 0:00:03]} Re7+ {[%emt 0:00:31]} 56. Kf3 {[%emt 0:01:03]} Re5 {[%emt 0:01:44]} 57. Rxb7 {[%emt 0:00:17]} Rxa5 {[%emt 0:00:10]} 58. Ke2 {[%emt 0:00:31]} Ra2+ {[%emt 0:00:31]} 59. Kd1 {[%emt 0:00:44]} a5 {[%emt 0:00:49]} 60. Kc1 {[%emt 0:00:39]} a4 {[%emt 0:00:37]} 61. Rb2 {[%emt 0:00:47]} Ra3 {[%emt 0:01:07]} 62. Kb1 {[%emt 0:00:47]} 1/2-1/2

[Event "European School-ch 2019"]
[Site "Mamaia"]
[Date "2019.06.07"]
[Round "8.2"]
[White "Paraschiv, Paul-Alexandru"]
[Black "Stoleriu, George"]
[Result "0-1"]
[ECO "A45"]
[WhiteElo "2055"]
[BlackElo "2372"]
[Annotator "RC"]
[PlyCount "82"]
[EventDate "2019.05.31"]
[EventType "swiss"]
[EventCountry "ROU"]
[SourceTitle "playchess.com"]
[Source "ChessBase"]
[SourceQuality "1"]
[TimeControl "40/5400+30:1800+30"]

1. d4 {[%emt 0:01:21]} Nf6 {[%emt 0:02:34]} 2. Bg5 {[%emt 0:01:13]} Ne4 {[%emt 0:00:08]} 3. Bf4 {[%emt 0:01:19]} c5 {[%emt 0:00:10]} 4. f3 {[%emt 0:00:09]} Qa5+ {[%emt 0:00:03]} 5. c3 {[%emt 0:00:05]} Nf6 {[%emt 0:00:03]} 6. d5 {[%emt 0:00:04]} e6 {[%emt 0:00:23]} 7. e4 {[%emt 0:00:34]} exd5 {[%emt 0:00:05]} 8. exd5 {[%emt 0:00:17]} d6 {[%emt 0:01:10]} 9. Nd2 {[%emt 0:00:06]} Be7 {[%emt 0:00:47]} 10. Nc4 {[%emt 0:00:19]} Qc7 {[%emt 0:01:29]} 11. a4 {[%emt 0:00:12]} O-O {[%emt 0:01:07]} 12. Ne2 {[%emt 0:01:20]} Re8 {[%emt 0:04:45]} 13. Ng3 {[%emt 0:02:14]} Nxd5 {[%emt 0:10:05]} 14. Qxd5 {[%emt 0:02:14]} Bg5+ {[%emt 0:00:08]} 15. Be3 {[%emt 0:01:44]} Bxe3 {[%emt 0:00:10]} 16. Nxe3 {[%emt 0:00:01]} Rxe3+ {[%emt 0:00:10]} 17. Kf2 {[%emt 0:00:01]} Re5 {[%emt 0:01:47]} 18. Qd2 {[%emt 0:00:16]} Nc6 {[%emt 0:03:30]} 19. Ne4 {[%emt 0:09:27]} Bf5 {[%emt 0:03:08]} 20. Ng3 {[%emt 0:16:23]} Bd7 {[%emt 0:05:02]} 21. Ne4 {[%emt 0:02:41]} Rd8 {[%emt 0:02:12]} 22. Rd1 {[%emt 0:03:27]} Bf5 {[%emt 0:01:45]} 23. Ng3 {[%emt 0:00:22]} Be6 {[%emt 0:01:47]} 24. Be2 {[%emt 0:02:11]} Bb3 {[%emt 0:04:21]} 25. Ra1 {[%emt 0:00:28]} d5 {[%emt 0:00:58]} 26. Rhe1 {[%emt 0:00:58]} d4 {[%emt 0:00:46]} 27. cxd4 {[%emt 0:00:14]} Nxd4 {[%emt 0:00:43]} 28. Qc3 {[%emt 0:00:14]} Rde8 {[%emt 0:15:54]} 29. Bd3 {[%emt 0:04:05]} Rxe1 {[%emt 0:01:52]} 30. Rxe1 {[%emt 0:00:02]} Rxe1 {[%emt 0:00:49]} 31. Qxe1 {[%emt 0:00:02]} Bxa4 {[%emt 0:00:20]} 32. b3 {[%emt 0:02:30]} Bc6 {[%emt 0:00:24]} 33. b4 {[%emt 0:00:24]} cxb4 {[%emt 0:02:09]} 34. Qxb4 {[%emt 0:00:02]} Qd7 {[%emt 0:01:24]} 35. Bc4 {[%emt 0:01:03]} Nc2 {[%emt 0:01:38]} 36. Qc3 {[%emt 0:01:21]} Qd4+ {[%emt 0:00:26]} 37. Qxd4 {[%emt 0:00:02]} Nxd4 {[%emt 0:00:05]} 38. Ke3 {[%emt 0:00:06]} Nb5 {[%emt 0:00:38]} 39. Ne4 {[%emt 0:01:00]} Bxe4 {[%emt 0:01:15]} 40. fxe4 {[%emt 0:00:00]} Nc7 {[%emt 0:00:00]} 41. Kd4 {[%emt 0:00:22]} Kf8 {[%emt 0:00:18]} 0-1

[Event "European School-ch 2019"]
[Site "Mamaia"]
[Date "2019.06.07"]
[Round "8.3"]
[White "Bulau, Andrei-Cristian"]
[Black "Gayun, Dmytro"]
[Result "1/2-1/2"]
[ECO "D46"]
[WhiteElo "2244"]
[BlackElo "2271"]
[Annotator "RC"]
[PlyCount "46"]
[EventDate "2019.05.31"]
[EventType "swiss"]
[EventCountry "ROU"]
[SourceTitle "playchess.com"]
[Source "ChessBase"]
[SourceQuality "1"]
[TimeControl "40/5400+30:1800+30"]

1. d4 {[%emt 0:00:00]} d5 {[%emt 0:00:00]} 2. c4 {[%emt 0:00:00]} c6 {[%emt 0:00:00]} 3. Nc3 {[%emt 0:00:00]} Nf6 {[%emt 0:00:04]} 4. Nf3 {[%emt 0:01:06]} e6 {[%emt 0:00:09]} 5. e3 {[%emt 0:00:07]} Nbd7 {[%emt 0:00:12]} 6. Bd3 {[%emt 0:00:14]} Bd6 {[%emt 0:00:34]} 7. O-O {[%emt 0:02:11]} O-O {[%emt 0:01:06]} 8. Qc2 {[%emt 0:02:56]} dxc4 {[%emt 0:00:22]} 9. Bxc4 {[%emt 0:00:01]} b5 {[%emt 0:00:22]} 10. Bd3 {[%emt 0:01:05]} Bb7 {[%emt 0:00:36]} 11. Rd1 {[%emt 0:00:04]} Qc7 {[%emt 0:04:00]} 12. h3 {[%emt 0:03:39]} a6 {[%emt 0:03:05]} 13. Ng5 {[%emt 0:03:32]} h6 {[%emt 0:01:31]} 14. Nge4 {[%emt 0:00:04]} Be7 {[%emt 0:01:32]} 15. Bd2 {[%emt 0:06:59]} c5 {[%emt 0:04:20]} 16. dxc5 {[%emt 0:02:34]} Nxc5 {[%emt 0:01:06]} 17. Nxc5 Bxc5 {[%emt 0:03:01]} 18. Ne4 {[%emt 0:03:53]} Nxe4 {[%emt 0:01:58]} 19. Bxe4 {[%emt 0:01:21]} Rac8 {[%emt 0:01:29]} 20. Rac1 {[%emt 0:02:13]} Qb8 {[%emt 0:00:52]} 21. Bxb7 {[%emt 0:01:02]} Qxb7 {[%emt 0:00:57]} 22. Qb3 {[%emt 0:01:18]} Be7 {[%emt 0:05:29]} 23. Bb4 {[%emt 0:05:08]} Bxb4 {[%emt 0:02:11]} 1/2-1/2

[Event "European School-ch 2019"]
[Site "Mamaia"]
[Date "2019.06.07"]
[Round "8.5"]
[White "Ozdemir, Serhan Berat"]
[Black "Sahin, Hayrun Nisa"]
[Result "1/2-1/2"]
[ECO "A04"]
[WhiteElo "1950"]
[BlackElo "1734"]
[Annotator "NA RC"]
[PlyCount "62"]
[EventDate "2019.05.31"]
[EventType "swiss"]
[EventCountry "ROU"]
[SourceTitle "playchess.com"]
[Source "ChessBase"]
[SourceQuality "1"]
[TimeControl "40/5400+30:1800+30"]

1. Nf3 {[%emt 0:00:00]} g6 {[%emt 0:00:00]} 2. d4 {[%emt 0:00:00]} Bg7 {[%emt 0:00:00]} 3. e3 {[%emt 0:00:08]} Nf6 {[%emt 0:00:00]} 4. Be2 {[%emt 0:00:08]} O-O {[%emt 0:00:00]} 5. O-O {[%emt 0:00:05]} d6 {[%emt 0:00:00]} 6. b3 {[%emt 0:00:48]} c5 {[%emt 0:03:04]} 7. Bb2 {[%emt 0:00:21]} cxd4 {[%emt 0:01:44]} 8. exd4 {[%emt 0:00:03]} d5 {[%emt 0:00:39]} 9. Nbd2 {[%emt 0:00:31]} Nc6 {[%emt 0:00:05]} 10. Ne5 {[%emt 0:01:10]} Nxe5 {[%emt 0:00:46]} 11. dxe5 {[%emt 0:00:03]} Ne4 {[%emt 0:00:16]} 12. Nxe4 {[%emt 0:00:28]} dxe4 {[%emt 0:00:04]} 13. Qxd8 {[%emt 0:00:21]} Rxd8 {[%emt 0:00:02]} 14. Rad1 {[%emt 0:00:10]} Be6 {[%emt 0:00:17]} 15. c4 {[%emt 0:00:22]} f5 {[%emt 0:00:44]} 16. exf6 {[%emt 0:01:31]} exf6 {[%emt 0:02:28]} 17. Ba3 {[%emt 0:00:10]} Bf8 {[%emt 0:00:49]} 18. Bxf8 {[%emt 0:00:06]} Kxf8 {[%emt 0:00:01]} 19. h4 {[%emt 0:02:26]} Ke7 {[%emt 0:00:07]} 20. Kh2 {[%emt 0:00:06]} h6 {[%emt 0:00:55]} 21. Kg3 {[%emt 0:00:35]} f5 {[%emt 0:00:19]} 22. f3 {[%emt 0:00:23]} exf3 23. Bxf3 {[%emt 0:00:12]} Rxd1 {[%emt 0:01:01]} 24. Rxd1 {[%emt 0:00:05]} Rb8 {[%emt 0:00:11]} 25. Bd5 {[%emt 0:00:33]} Kf6 {[%emt 0:00:56]} 26. Bxe6 {[%emt 0:00:16]} Kxe6 {[%emt 0:00:01]} 27. Re1+ {[%emt 0:00:16]} Kf6 {[%emt 0:00:23]} 28. Rd1 {[%emt 0:00:09]} Re8 {[%emt 0:04:14]} 29. Kf3 {[%emt 0:00:45]} Re7 {[%emt 0:00:12]} 30. g3 {[%emt 0:00:40]} g5 {[%emt 0:03:20]} 31. hxg5+ {[%emt 0:00:05]} hxg5 {[%emt 0:00:14] Ke4 Ke5+} 1/2-1/2